[Event "Arona Festival 2024"]
[Site "Arona Tenerife"]
[Date "2024.06.23"]
[Round "3.7"]
[White "Paichadze, Luka"]
[Black "Baenziger, Fabian"]
[Result "1/2-1/2"]
[ECO "C02"]
[WhiteElo "2504"]
[BlackElo "2410"]
[Annotator "TA"]
[PlyCount "67"]
[EventDate "2024.06.20"]
[EventType "swiss"]
[EventCountry "ESP"]
[SourceTitle "playchess.com"]
[Source "ChessBase"]
[SourceQuality "1"]
[TimeControl "5400+30"]

{[%evp 16,67,0,0,0,0,8,11,4,0,21,20,20,16,16,16,16,18,21,23,17,0,4,0,0,9,27,0,0,0,34,-18,24,14,5,-37,-39,-37,-27,-37,-37,-37,-37,-27,-29,-27,-28,-29,-35,-25,0,0,0,-42]} 1. e4 {[%emt 0:03:19]} e6 {[%emt 0:00:29]} 2. d4 {[%emt 0:00:24]} d5 {[%emt 0:00:05]} 3. e5 {[%emt 0:00:05]} c5 {[%emt 0:00:06]} 4. c3 {[%emt 0:00:04]} Nc6 {[%emt 0:00:26]} 5. Nf3 {[%emt 0:00:11]} Bd7 {[%emt 0:00:22]} 6. Be2 {[%emt 0:02:56]} Nge7 {[%emt 0:01:01]} 7. O-O {[%emt 0:10:05]} cxd4 {[%emt 0:01:41]} 8. cxd4 {[%emt 0:00:09]} Nf5 {[%emt 0:00:06]} 9. Nc3 {[%emt 0:00:13][%cal Bb1c3,Bc3a4,Ba4b6][%mdl 32]} a6 {[%emt 0:00:15]} 10. Bg5 {[%emt 0:01:51]} Be7 {[%emt 0:00:07]} 11. Bxe7 {[%emt 0:00:07]} Qxe7 {[%emt 0:00:06]} 12. Na4 {[%emt 0:06:04]} O-O {[%emt 0:02:28]} 13. Rc1 {[%emt 0:02:43]} Be8 {[%emt 0:12:09]} 14. Bd3 {[%emt 0:16:51]} Nh4 {[%emt 0:07:13]} 15. Nxh4 {[%emt 0:02:20]} Qxh4 {[%emt 0:00:05]} 16. f4 {[%emt 0:00:49]} ({Reject} 16. Nb6 Rb8 $15) 16... Nxd4 {[%emt 0:05:47]} 17. Nb6 {[%emt 0:03:07]} Rd8 {[%emt 0:00:31] [#]} 18. Bxh7+ $1 {[%emt 0:01:03]} Qxh7 {[%emt 0:00:09]} 19. Qxd4 {[%emt 0:00:06]} Bc6 {[%emt 0:00:49]} 20. Rce1 {[%emt 0:09:58] Black is weak on the dark squares} Qf5 {[%emt 0:06:01]} 21. Re3 {[%emt 0:02:01]} f6 {[%emt 0:07:06]} 22. g3 {[%emt 0:04:31]} Rde8 {[%emt 0:10:28]} 23. Rfe1 {[%emt 0:01:23]} ({White should try} 23. Na4 $14) 23... Kf7 {[%emt 0:00:40]} (23... g5 {simplifies} 24. Na4 gxf4 25. Rf3 fxe5 26. Rxe5 Qg4) 24. Na4 {[%emt 0:05:25]} Rh8 {[%emt 0:16:24]} 25. Nc5 {[%emt 0:04:01] [#]} Rxh2 $1 {[%emt 0:04:57]} 26. Kxh2 {[%emt 0:00:20]} Rh8+ {[%emt 0:00:17]} 27. Kg1 {[%emt 0:01:13][%cal Bh2g1,Bg1f2,Bf2f1][%mdl 32]} Qh3 {[%emt 0:00:04][%mdl 1024] ( -> ...Qh1+). Black has compensation.} 28. Kf2 $1 {[%emt 0:00:52]} Qh2+ $1 {[%emt 0:00:36]} 29. Kf1 $1 {[%emt 0:00:15] Black must now prevent a4.} Bb5+ {[%emt 0:08:25]} 30. Nd3 $1 {[%emt 0:00:17]} Qc2 {[%emt 0:00:25][%cal Rh8h1]} 31. R1e2 {[%emt 0:03:50]} Qd1+ {[%emt 0:01:40]} 32. Re1 {[%emt 0:00:40]} Qc2 {[%emt 0:00:12][%cal Rh8h1]} 33. R1e2 {[%emt 0:00:20]} Qd1+ {[%emt 0:00:04]} 34. Re1 {[%emt 0:00:05] Weighted Error Value: White=0.07 (flawless) /Black=0.05 (flawless) .  Mistake:       	White=1     	---        Inaccurate:     	White=2     	Black=2      OK:         	White=6     	Black=8      Best:        	White=5     	Black=2      Strong:       	White=3     	Black=1      Brilliant:      	---       	Black=1} 1/2-1/2

[Event "Arona Festival 2024"]
[Site "Arona Tenerife"]
[Date "2024.06.23"]
[Round "3.8"]
[White "O`Gorman, Tom"]
[Black "David, Alberto"]
[Result "1/2-1/2"]
[ECO "E27"]
[WhiteElo "2337"]
[BlackElo "2502"]
[Annotator "TA"]
[PlyCount "100"]
[EventDate "2024.06.20"]
[EventType "swiss"]
[EventCountry "ESP"]
[SourceTitle "playchess.com"]
[Source "ChessBase"]
[SourceQuality "1"]
[TimeControl "5400+30"]

{[%evp 15,100,12,48,10,16,15,18,6,22,-14,49,32,61,41,37,51,49,60,41,24,34,23,33,43,28,31,42,39,34,45,33,36,40,13,19,8,16,22,35,23,50,41,41,15,64,37,34,31,31,20,59,0,60,66,58,19,37,9,14,0,33,24,58,18,25,28,65,65,70,50,90,0,0,0,0,0,0,0,0,0,22,0,0,0,0,0,0]} 1. d4 {[%emt 0:00:05]} Nf6 {[%emt 0:00:15]} 2. c4 {[%emt 0:00:06]} e6 {[%emt 0:00:06]} 3. Nc3 {[%emt 0:00:06]} Bb4 {[%emt 0:00:05]} 4. f3 {[%emt 0:00:05]} O-O {[%emt 0:00:57]} 5. a3 {[%emt 0:00:06]} Bxc3+ {[%emt 0:00:07]} 6. bxc3 {[%emt 0:00:05]} Ne8 {[%emt 0:00:40]} 7. e4 {[%emt 0:00:06] E27: Nimzo-Indian: Sämisch: 5...0-0 6 f3.} c5 {[%emt 0:08:24]} 8. f4 {[%emt 0:01:20]} cxd4 {[%emt 0:06:51]} 9. cxd4 {[%emt 0:00:47]} b5 {[%emt 0:07:01]} 10. cxb5 {[%emt 0:03:38]} Nd6 $146 {[%emt 0:04:56]} ({Predecessor:} 10... a6 11. Nf3 axb5 12. Bd3 Nc6 13. O-O Nc7 14. d5 exd5 15. exd5 Nxd5 16. Bxh7+ Kxh7 {1-0 Nesterov,A (2584)-Berczes,D (2425) Budapest FS02 GM 2024 (2)}) 11. Bd3 {[%emt 0:13:42]} Bb7 $1 {[%emt 0:03:18]} 12. Nf3 {[%emt 0:08:02]} a6 {[%emt 0:17:12]} (12... Nxe4 $11 13. O-O a6) 13. e5 $14 {[%emt 0:05:19]} Ne4 {[%emt 0:12:41]} 14. O-O {[%emt 0:09:59]} axb5 {[%emt 0:00:48]} 15. Ng5 {[%emt 0:05:39]} d5 {[%emt 0:02:46]} 16. Bxb5 {[%emt 0:06:30]} Bc6 {[%emt 0:04:24]} 17. Bd3 {[%emt 0:03:06]} h6 {[%emt 0:05:05]} 18. Nf3 {[%emt 0:01:00]} Ba4 {[%emt 0:00:40]} 19. Qe1 {[%emt 0:01:20]} Nc6 {[%emt 0:00:04]} 20. Bd2 {[%emt 0:05:03]} Qb6 {[%emt 0:00:45]} 21. Rb1 {[%emt 0:01:08]} Qa7 {[%emt 0:00:06]} 22. Bxe4 {[%emt 0:00:50]} dxe4 {[%emt 0:00:03]} 23. Qxe4 {[%emt 0:00:06]} Rfd8 {[%emt 0:07:02]} 24. Be3 {[%emt 0:01:23]} Qa6 {[%emt 0:00:12]} 25. f5 {[%emt 0:03:26]} exf5 {[%emt 0:02:20]} 26. Qxf5 {[%emt 0:00:12]} Ne7 {[%emt 0:00:04]} 27. Qh5 {[%emt 0:02:18]} Bc2 {[%emt 0:01:07]} 28. Ra1 {[%emt 0:01:56]} Qe6 {[%emt 0:05:29]} 29. Nh4 {[%emt 0:04:06]} Rab8 {[%emt 0:06:07]} (29... Ra4 $11) 30. Qe2 {[%emt 0:03:44]} (30. Rf2 {looks sharper.} Bd3 31. Rd1 Bc4 32. Rc1) 30... Nd5 {[%emt 0:02:08]} 31. Bd2 {[%emt 0:03:25]} Rb3 {[%emt 0:01:29]} 32. Rf3 {[%emt 0:00:53]} Qb6 $1 {[%emt 0:00:54]} 33. Qf2 {[%emt 0:00:47]} (33. Qc4 $14) 33... Rxf3 (33... Rb1+ $1 $11 34. Rxb1 Qxb1+ 35. Qe1 Qb6) 34. Nxf3 $14 {[%emt 0:00:11]} ({Much worse is} 34. gxf3 Bb1 35. Bb4 Nf4 $11) 34... Be4 {[%emt 0:01:33]} 35. Re1 {[%emt 0:03:27]} (35. Nh4 {feels hotter.} Qb3 36. Rf1 Ne7 37. Qe3) 35... Bxf3 $1 {[%emt 0:00:07]} 36. Qxf3 {[%emt 0:00:16]} Qxd4+ {[%emt 0:00:15]} 37. Qf2 {[%emt 0:00:09]} (37. Be3 {simplifies} Nxe3 38. Qxe3 Qxe3+ 39. Rxe3 Ra8 40. Kf1) 37... Qa4 {[%emt 0:01:56]} 38. Bc1 {[%emt 0:00:21]} Nc3 {[%emt 0:00:31]} 39. Qg3 {[%emt 0:10:02]} Ne4 {[%emt 0:00:57]} 40. Qe3 {[%emt 0:00:15]} Rd1 {[%emt 0:00:12]} 41. h3 {[%emt 0:01:52]} Rxe1+ {[%emt 0:00:39]} 42. Qxe1 {[%emt 0:00:06]} Qd4+ {[%emt 0:00:01]} 43. Qe3 {[%emt 0:01:25]} (43. Be3 $16 Qxe5 44. a4) 43... Qxe5 $11 {[%emt 0:00:02]} 44. a4 {[%emt 0:00:34]} f5 $1 {[%emt 0:00:10]} 45. Qb6 {[%emt 0:01:42]} Ng3 {[%emt 0:01:34]} 46. Qe3 {[%emt 0:01:05]} Ne4 {[%emt 0:00:22]} 47. Qb6 {[%emt 0:00:05]} Nc3 {[%emt 0:01:01]} 48. Bb2 {[%emt 0:01:15]} Qe1+ {[%emt 0:00:18]} 49. Kh2 {[%emt 0:00:04]} Qe5+ {[%emt 0:00:03]} 50. Kg1 {[%emt 0:00:09]} (50. Kh1 $5 Qe1+ $8 51. Kh2 Qe5+ 52. Kh1 Qe1+ 53. Kh2 $11) 50... Qe1+ {[%emt 0:00:26]} 1/2-1/2

[Event "Arona Festival 2024"]
[Site "Arona Tenerife"]
[Date "2024.06.23"]
[Round "3.9"]
[White "Royal, Shreyas"]
[Black "Ritviz, Parab"]
[Result "0-1"]
[ECO "E11"]
[WhiteElo "2483"]
[BlackElo "2334"]
[Annotator "TA"]
[PlyCount "104"]
[EventDate "2024.06.20"]
[EventType "swiss"]
[EventCountry "ESP"]
[SourceTitle "playchess.com"]
[Source "ChessBase"]
[SourceQuality "1"]
[TimeControl "5400+30"]

{[%evp 13,104,0,18,6,38,45,68,70,83,101,124,138,131,116,121,85,77,67,76,55,41,55,56,60,50,39,45,28,36,26,40,35,23,34,38,22,31,13,25,0,0,0,0,-17,-14,-11,-8,-10,-7,-2,0,0,0,-19,-19,-20,-5,-2,0,-61,-31,-50,-55,-39,-48,-140,-156,-135,-115,-116,0,-137,0,-103,-116,-192,-193,-323,-319,-365,-353,-339,-308,-285,-301,-427,-420,-502,-496,-516,-513,-2127,-2074]} 1. d4 {[%emt 0:00:02]} d5 {[%emt 0:09:41]} 2. c4 {[%emt 0:00:07]} e6 {[%emt 0:00:04]} 3. Nf3 {[%emt 0:00:06]} Nf6 {[%emt 0:00:12]} 4. g3 {[%emt 0:00:06]} Bb4+ {[%emt 0:01:45]} 5. Bd2 {[%emt 0:00:07]} Be7 {[%emt 0:02:12]} 6. Bg2 {[%emt 0:00:07]} O-O {[%emt 0:00:34]} 7. O-O {[%emt 0:00:07]} Nbd7 {[%emt 0:09:21]} 8. Qc2 {[%emt 0:00:08]} c5 {[%emt 0:13:54]} 9. cxd5 {[%emt 0:01:40]} exd5 {[%emt 0:00:30]} 10. Nc3 {[%emt 0:01:22] White is slightly better.} b6 {[%emt 0:19:56]} 11. Ng5 {[%emt 0:05:29]} Bb7 {[%emt 0:00:45] [#]} 12. Nxd5 $1 {[%emt 0:00:42][%mdl 512]} Bxd5 {[%emt 0:00:14]} 13. Bxd5 {[%emt 0:00:07]} Rc8 {[%emt 0:00:10][%cal Oc5d4]} 14. Bxf7+ {[%emt 0:04:29]} Rxf7 {[%emt 0:00:47]} 15. Qc4 {[%emt 0:02:05]} Qe8 {[%emt 0:02:35]} 16. Qxf7+ {[%emt 0:03:55]} (16. Rac1 {seems wilder.} Rd8 17. Bc3 a5 18. Rfd1) 16... Qxf7 {[%emt 0:00:04]} 17. Nxf7 {[%emt 0:00:08]} Kxf7 {[%emt 0:00:02]} 18. dxc5 {[%emt 0:00:09]} Bxc5 {[%emt 0:01:49]} 19. Rac1 {[%emt 0:01:20] [#] Threatens to win with b4.} Re8 {[%emt 0:02:11]} 20. e3 {[%emt 0:04:15]} Ne4 {[%emt 0:07:37]} 21. Bc3 {[%emt 0:00:26]} Ne5 {[%emt 0:06:55]} 22. Bxe5 {[%emt 0:01:38]} Rxe5 {[%emt 0:00:02]} 23. Kg2 {[%emt 0:00:15]} a5 {[%emt 0:03:52]} 24. Rfe1 {[%emt 0:04:03]} g5 {[%emt 0:02:21]} 25. f3 {[%emt 0:05:10]} Nf6 {[%emt 0:00:14]} 26. e4 {[%emt 0:03:02]} h5 {[%emt 0:05:37]} 27. Rcd1 {[%emt 0:02:47]} g4 {[%emt 0:01:07]} 28. h3 {[%emt 0:00:05]} gxf3+ {[%emt 0:00:58]} 29. Kxf3 {[%emt 0:00:01]} Ke7 {[%emt 0:03:01]} 30. Re2 {[%emt 0:00:17]} Bd6 {[%emt 0:01:30]} 31. Rd3 {[%emt 0:00:57]} Ke6 {[%emt 0:01:05]} 32. h4 {[%emt 0:03:27]} Ke7 {[%emt 0:01:10]} 33. a3 {[%emt 0:01:31]} Re6 {[%emt 0:00:35][%mdl 1024] Black has compensation.} 34. Rb3 {[%emt 0:03:11]} Be5 {[%emt 0:00:28]} 35. Rb5 {[%emt 0:01:04]} Ng4 {[%emt 0:02:38]} 36. Rd5 {[%emt 0:00:06]} ({White should play} 36. Rd2 $11) 36... Rc6 {[%emt 0:00:30]} 37. Red2 {[%emt 0:00:16]} Rf6+ {[%emt 0:00:15]} 38. Ke2 {[%emt 0:00:14]} Rf2+ {[%emt 0:00:06]} (38... Bxg3 39. Rxh5 Rf2+ 40. Kd3 Rf3+ 41. Kc4 $11) 39. Kd3 {[%emt 0:00:29]} ({Better is} 39. Ke1 $15 Rf3 (39... Bxg3 40. Rxf2 Bxh4 41. Rxh5 $11) 40. Rb5) 39... Rf3+ $17 {[%emt 0:00:37]} (39... Bxb2 $6 40. Rxf2 Nxf2+ 41. Ke3 Ng4+ 42. Kf4 Bc1+ (42... Bxa3 43. Rxh5 Nf6 44. Rh8 $11) 43. Kf3 $11) (39... Rxd2+ 40. Kxd2 Bxg3 (40... Bxb2 41. Rxh5 Nf6 42. Rb5 $11) 41. Rxh5 $14) 40. Ke2 {[%emt 0:00:23]} Re3+ {[%emt 0:02:00]} 41. Kf1 {[%emt 0:00:17]} Rf3+ {[%emt 0:00:15]} ({Don't take} 41... Bxg3 42. Rxh5 Rxe4 43. Kg2) 42. Ke2 {[%emt 0:00:07]} Re3+ {[%emt 0:00:05]} 43. Kf1 $1 {[%emt 0:00:03]} Rxg3 {[%emt 0:01:42] ...Ne3+ is the strong threat. Black is more active.} 44. Rd7+ {[%emt 0:00:48]} (44. R2d3 $17 {was worth a try.} Rxd3 45. Rxd3 Bxb2 46. a4) 44... Ke6 $19 {[%emt 0:00:18]} 45. Rb7 {[%emt 0:00:53]} (45. R7d3 {was necessary.}) 45... Rb3 {[%emt 0:00:06]} 46. a4 {[%emt 0:01:56]} Bxb2 {[%emt 0:00:29]} (46... Rxb2 $2 {perishes.} 47. Rxb2 Bxb2 48. Rxb6+ Ke5 49. Rxb2 $18) 47. Ke2 {[%emt 0:00:26]} Nf6 {[%emt 0:00:44]} 48. Rc2 {[%emt 0:00:33]} Bc3 {[%emt 0:00:55]} (48... Nxe4 49. Rc6+ Nd6 50. Rbxb6 Rxb6 51. Rxb6 $17) 49. Kd1 {[%emt 0:01:39]} (49. Kd3 {keeps fighting.} Be5+ 50. Ke2 Nxe4 51. Rc6+ Kf5 52. Rbxb6) 49... Nxe4 {[%emt 0:00:22]} 50. Re2 {[%emt 0:00:05]} Rb4 {[%emt 0:00:26] Black is clearly winning.} 51. Kc2 {[%emt 0:00:07]} Be5 {[%emt 0:00:15] ...Rb2+ would now be deadly.} 52. Rg2 {[%emt 0:00:28]} (52. Re3 $142) 52... Rb2+ {[%emt 0:00:06] Weighted Error Value: White=0.33/Black=0.14 (very precise) .  Mistake:       	White=6     	---        Inaccurate:     	---       	Black=2      OK:         	White=13    	Black=18     Best:        	White=3     	Black=3      Strong:       	White=1     	---        Brilliant:      	White=1     	---} 0-1